[Event "26th OIBM 2023"]
[Site "Gmund am Tegernsee"]
[Date "2023.10.30"]
[Round "3.25"]
[White "Kobold, Jonathan"]
[Black "Casadio, Niccolo`"]
[Result "1/2-1/2"]
[ECO "C11"]
[WhiteElo "1901"]
[BlackElo "2082"]
[Annotator "NA RC"]
[PlyCount "117"]
[EventDate "2023.10.04"]
[EventType "swiss"]
[EventCountry "GER"]
[SourceTitle "playchess.com"]
[Source "ChessBase"]
[SourceQuality "1"]
[TimeControl "40/5400+30:1800+30"]

1. e4 {[%emt 0:02:10]} e6 {[%emt 0:00:05]} 2. Nf3 {[%emt 0:00:10]} d5 {[%emt 0:00:04]} 3. Nc3 {[%emt 0:00:15]} Nf6 {[%emt 0:00:06]} 4. e5 {[%emt 0:00:10]} Nfd7 {[%emt 0:00:04]} 5. Ne2 {[%emt 0:00:12]} c5 {[%emt 0:00:09]} 6. c3 {[%emt 0:00:12]} Nc6 {[%emt 0:00:04]} 7. d4 {[%emt 0:00:16]} Qb6 {[%emt 0:00:05]} 8. g3 {[%emt 0:00:21]} Be7 {[%emt 0:02:34]} 9. Bg2 {[%emt 0:00:13]} O-O {[%emt 0:00:12]} 10. O-O {[%emt 0:00:08]} cxd4 {[%emt 0:03:12]} 11. cxd4 {[%emt 0:00:16]} f6 {[%emt 0:00:18]} 12. Nf4 {[%emt 0:00:21]} fxe5 {[%emt 0:06:08]} 13. Nxe6 {[%emt 0:02:29]} Rf6 {[%emt 0:00:06]} 14. Nfg5 {[%emt 0:22:39]} e4 {[%emt 0:00:27]} 15. Nf4 {[%emt 0:09:28]} Rf5 {[%emt 0:06:54]} 16. Nge6 {[%emt 0:03:25]} Nf8 {[%emt 0:00:35]} 17. Bh3 {[%emt 0:05:51]} Bxe6 {[%emt 0:01:57]} 18. Nxe6 {[%emt 0:10:09]} Rf6 {[%emt 0:05:15]} 19. Nf4 {[%emt 0:03:31]} Rd6 {[%emt 0:00:14]} 20. b3 {[%emt 0:03:21]} Qxd4 {[%emt 0:03:41]} 21. Ba3 {[%emt 0:00:36]} Qxd1 {[%emt 0:00:54]} 22. Raxd1 {[%emt 0:00:07]} Rdd8 {[%emt 0:00:06]} 23. Bb2 {[%emt 0:06:49]} d4 {[%emt 0:04:38]} 24. Bg2 {[%emt 0:00:12]} Bf6 {[%emt 0:02:48]} 25. Bxe4 {[%emt 0:00:42]} g6 {[%emt 0:00:20]} 26. Rd2 {[%emt 0:02:34]} Rd6 {[%emt 0:06:30]} 27. Rfd1 {[%emt 0:00:20]} Rad8 {[%emt 0:00:14]} 28. Kf1 {[%emt 0:05:40]} Bg5 {[%emt 0:08:08]} 29. Bxc6 {[%emt 0:05:38]} Bxf4 {[%emt 0:01:19]} 30. Rxd4 {[%emt 0:01:59]} bxc6 {[%emt 0:01:24]} 31. gxf4 {[%emt 0:00:15]} Rxd4 {[%emt 0:00:03]} 32. Rxd4 {[%emt 0:00:09]} Ne6 {[%emt 0:03:31]} 33. Rxd8+ {[%emt 0:00:49]} Nxd8 {[%emt 0:00:01]} 34. Bd4 {[%emt 0:00:11]} a6 {[%emt 0:00:05]} 35. Ke2 {[%emt 0:00:23]} Kf7 {[%emt 0:00:03]} 36. Kd3 {[%emt 0:00:52]} Ke6 {[%emt 0:00:03]} 37. Kc4 {[%emt 0:02:49]} Nb7 {[%emt 0:00:05]} 38. f3 {[%emt 0:01:20]} Kf5 {[%emt 0:00:51]} 39. Be3 {[%emt 0:00:12]} h5 {[%emt 0:00:32]} 40. h4 {[%emt 0:01:09]} Ke6 {[%emt 0:00:05]} 41. Bd4 {[%emt 0:32:38]} Kf5 {[%emt 0:33:13]} 42. Be3 {[%emt 0:00:13]} Kf6 {[%emt 0:00:29]} 43. Bd4+ {[%emt 0:00:36]} Ke6 {[%emt 0:00:05]} 44. Bf2 {[%emt 0:00:59]} Kd6 {[%emt 0:00:26]} 45. b4 {[%emt 0:03:38]} Kc7 {[%emt 0:04:09]} 46. Kd4 {[%emt 0:00:00]} Kd6 {[%emt 0:00:00]} 47. Kc4 {[%emt 0:00:00]} Kd7 {[%emt 0:00:00]} 48. Kd4 {[%emt 0:00:00]} Ke6 {[%emt 0:00:00]} 49. Kc4 {[%emt 0:00:00]} Kd6 {[%emt 0:00:00]} 50. Bc5+ {[%emt 0:00:00]} Kd7 {[%emt 0:00:00]} 51. Bf2 {[%emt 0:00:00]} Kc7 {[%emt 0:00:00]} 52. Kd4 {[%emt 0:00:00]} Kd6 {[%emt 0:00:00]} 53. Kc4 {[%emt 0:00:00]} Kd7 {[%emt 0:00:00]} 54. Kd4 {[%emt 0:00:00]} Ke6 {[%emt 0:00:00]} 55. Kc4 {[%emt 0:00:00]} Kd6 {[%emt 0:00:00]} 56. Bc5+ {[%emt 0:00:00]} Nxc5 {[%emt 0:00:00]} 57. bxc5+ {[%emt 0:00:00]} Ke6 {[%emt 0:00:00]} 58. Kd4 {[%emt 0:00:00]} a5 {[%emt 0:00:00]} 59. a4 {[%emt 0:00:00]} 1/2-1/2

[Event "26th OIBM 2023"]
[Site "Gmund am Tegernsee"]
[Date "2023.10.30"]
[Round "3.26"]
[White "Wecker, Martin"]
[Black "Gold, Florian"]
[Result "1/2-1/2"]
[ECO "E08"]
[WhiteElo "2075"]
[BlackElo "1898"]
[Annotator "NA RC"]
[PlyCount "102"]
[EventDate "2023.10.04"]
[EventType "swiss"]
[EventCountry "GER"]
[SourceTitle "playchess.com"]
[Source "ChessBase"]
[SourceQuality "1"]
[TimeControl "40/5400+30:1800+30"]

1. Nf3 {[%emt 0:02:11]} Nf6 {[%emt 0:00:05]} 2. c4 {[%emt 0:00:31]} e6 {[%emt 0:00:04]} 3. g3 {[%emt 0:00:21]} d5 {[%emt 0:00:10]} 4. d4 {[%emt 0:00:11]} Bb4+ {[%emt 0:00:04]} 5. Bd2 {[%emt 0:00:08]} Be7 {[%emt 0:00:03]} 6. Bg2 {[%emt 0:00:19]} O-O {[%emt 0:00:23]} 7. Qc2 {[%emt 0:01:46]} c6 {[%emt 0:00:12]} 8. O-O {[%emt 0:00:08]} Nbd7 {[%emt 0:00:23]} 9. Bf4 {[%emt 0:00:26]} b6 {[%emt 0:00:16]} 10. Rd1 {[%emt 0:00:43]} Bb7 {[%emt 0:01:06]} 11. Ne5 {[%emt 0:01:16]} Rc8 {[%emt 0:07:18]} 12. Nc3 {[%emt 0:04:30]} Nxe5 {[%emt 0:04:19]} 13. dxe5 {[%emt 0:00:11]} Nd7 {[%emt 0:00:21]} 14. cxd5 {[%emt 0:00:23]} cxd5 {[%emt 0:00:12]} 15. e4 {[%emt 0:01:54]} dxe4 {[%emt 0:01:27]} 16. Bxe4 {[%emt 0:00:48]} Bxe4 {[%emt 0:03:15]} 17. Qxe4 {[%emt 0:02:45]} Qc7 {[%emt 0:01:36]} 18. Nb5 {[%emt 0:25:15]} Nc5 {[%emt 0:00:17]} 19. Qf3 {[%emt 0:06:53]} Qb8 {[%emt 0:00:13]} 20. b4 {[%emt 0:10:29]} a6 {[%emt 0:06:38]} 21. Nd6 {[%emt 0:18:21]} Bxd6 {[%emt 0:02:30]} 22. exd6 {[%emt 0:00:06]} Nd7 {[%emt 0:00:06]} 23. Rac1 {[%emt 0:03:37]} e5 {[%emt 0:04:55]} 24. Bg5 {[%emt 0:02:17]} Rxc1 {[%emt 0:01:28]} 25. Bxc1 {[%emt 0:00:05]} Qa8 {[%emt 0:15:45]} 26. Qg4 {[%emt 0:00:50]} Nf6 {[%emt 0:00:09]} 27. Qe2 {[%emt 0:02:37]} Ne4 {[%emt 0:06:35]} 28. Qe3 {[%emt 0:02:37]} Qb7 {[%emt 0:10:42]} 29. f3 {[%emt 0:01:22]} Nf6 {[%emt 0:00:20]} 30. Qxe5 {[%emt 0:01:06]} Qxf3 {[%emt 0:00:31]} 31. Rf1 {[%emt 0:01:06]} Qe4 {[%emt 0:02:39]} 32. Qxe4 {[%emt 0:02:38]} Nxe4 {[%emt 0:00:01]} 33. Bf4 {[%emt 0:01:03]} Rd8 {[%emt 0:00:20]} 34. Re1 {[%emt 0:03:21]} f5 {[%emt 0:00:53]} 35. Rc1 {[%emt 0:00:37]} g5 {[%emt 0:07:37]} 36. Be5 {[%emt 0:00:07]} Kf7 {[%emt 0:01:58]} 37. Rc7+ {[%emt 0:01:55]} Ke6 {[%emt 0:01:51]} 38. Re7+ {[%emt 0:00:05]} Kd5 {[%emt 0:00:03]} 39. d7 {[%emt 0:00:06]} Kc6 {[%emt 0:01:04]} 40. Rxh7 {[%emt 0:00:06]} Rxd7 {[%emt 0:00:51]} 41. Rxd7 {[%emt 0:30:05]} Kxd7 {[%emt 0:30:06]} 42. h4 {[%emt 0:00:05]} Ke6 {[%emt 0:02:07]} 43. Bc7 {[%emt 0:01:21]} gxh4 {[%emt 0:00:16]} 44. gxh4 {[%emt 0:00:10]} b5 {[%emt 0:00:05]} 45. Bf4 {[%emt 0:02:12]} Kd5 {[%emt 0:02:23]} 46. h5 {[%emt 0:00:58]} Nf6 {[%emt 0:02:04]} 47. h6 {[%emt 0:00:04]} Ke4 {[%emt 0:00:08]} 48. Bc1 {[%emt 0:01:17]} Kf3 {[%emt 0:01:53]} 49. Kh2 {[%emt 0:00:34]} Kg4 {[%emt 0:10:12]} 50. a3 {[%emt 0:00:00]} f4 {[%emt 0:00:00]} 51. Kg2 {[%emt 0:00:00]} f3+ {[%emt 0:00:00]} 1/2-1/2

[Event "26th OIBM 2023"]
[Site "Gmund am Tegernsee"]
[Date "2023.10.30"]
[Round "3.27"]
[White "Navarro Jahnke, Leo"]
[Black "Esswein, Karlheinz"]
[Result "1-0"]
[ECO "E61"]
[WhiteElo "1884"]
[BlackElo "2077"]
[Annotator "NA RC"]
[PlyCount "81"]
[EventDate "2023.10.04"]
[EventType "swiss"]
[EventCountry "GER"]
[SourceTitle "playchess.com"]
[Source "ChessBase"]
[SourceQuality "1"]
[TimeControl "40/5400+30:1800+30"]

1. d4 {[%emt 0:00:06]} Nf6 {[%emt 0:00:09]} 2. Nf3 {[%emt 0:00:30]} d6 {[%emt 0:00:56]} 3. Bf4 {[%emt 0:01:18]} g6 {[%emt 0:00:25]} 4. e3 {[%emt 0:00:27]} Bg7 {[%emt 0:00:07]} 5. h3 {[%emt 0:00:30]} Nbd7 {[%emt 0:00:34]} 6. Be2 {[%emt 0:00:23]} O-O {[%emt 0:00:06]} 7. O-O {[%emt 0:00:16]} b6 {[%emt 0:01:14]} 8. c4 {[%emt 0:08:01]} Bb7 {[%emt 0:00:19]} 9. Qc2 {[%emt 0:00:49]} e6 {[%emt 0:01:31]} 10. Nc3 {[%emt 0:00:46]} Qe7 {[%emt 0:03:50]} 11. Rfd1 {[%emt 0:02:26]} Rfd8 {[%emt 0:09:36]} 12. Nb5 {[%emt 0:01:22]} Ne8 {[%emt 0:06:44]} 13. a4 {[%emt 0:11:06]} c6 {[%emt 0:06:46]} 14. Nc3 {[%emt 0:01:38]} a5 {[%emt 0:01:22]} 15. Qb3 {[%emt 0:09:19]} Ba6 {[%emt 0:04:59]} 16. Qa3 {[%emt 0:03:23]} Bf8 {[%emt 0:05:37]} 17. d5 {[%emt 0:07:48]} cxd5 {[%emt 0:05:27]} 18. cxd5 {[%emt 0:02:17]} Bxe2 {[%emt 0:00:12]} 19. Nxe2 {[%emt 0:00:01]} e5 {[%emt 0:01:25]} 20. Bg3 {[%emt 0:03:37]} Rdc8 {[%emt 0:05:07]} 21. Nc3 {[%emt 0:02:58]} Nc7 {[%emt 0:05:14]} 22. Nd2 {[%emt 0:07:37]} Na6 {[%emt 0:02:23]} 23. Na2 {[%emt 0:03:01]} Nac5 {[%emt 0:04:10]} 24. Rac1 {[%emt 0:00:37]} f5 {[%emt 0:01:24]} 25. b4 {[%emt 0:01:55]} axb4 {[%emt 0:01:09]} 26. Nxb4 {[%emt 0:00:02]} Rxa4 {[%emt 0:00:44]} 27. Qxa4 {[%emt 0:00:08]} Nxa4 {[%emt 0:00:07]} 28. Rxc8 {[%emt 0:00:02]} Qf7 {[%emt 0:04:28]} 29. Nc6 {[%emt 0:09:04]} Ndc5 {[%emt 0:00:54]} 30. Nc4 {[%emt 0:01:47]} Kg7 {[%emt 0:05:16]} 31. Rd2 {[%emt 0:03:32]} b5 {[%emt 0:05:02]} 32. N4xe5 {[%emt 0:04:10]} dxe5 {[%emt 0:01:00]} 33. Bxe5+ {[%emt 0:00:00]} Kh6 {[%emt 0:00:24]} 34. Rc7 {[%emt 0:00:34]} Qe8 {[%emt 0:02:05]} 35. Rd4 {[%emt 0:01:33]} g5 {[%emt 0:02:13]} 36. h4 {[%emt 0:01:45]} g4 {[%emt 0:03:36]} 37. d6 {[%emt 0:00:12]} Nd7 {[%emt 0:00:23]} 38. Bf4+ {[%emt 0:00:22]} Kh5 {[%emt 0:01:58]} 39. Ne7 {[%emt 0:02:12]} Bxe7 {[%emt 0:04:49]} 40. dxe7 {[%emt 0:00:11]} Nab6 {[%emt 0:00:03]} 41. Rd6 {[%emt 0:30:25]} 1-0

[Event "26th OIBM 2023"]
[Site "Gmund am Tegernsee"]
[Date "2023.10.30"]
[Round "3.28"]
[White "Hanisch, Sebastian"]
[Black "Troidl, Thomas"]
[Result "1-0"]
[ECO "A80"]
[WhiteElo "2070"]
[BlackElo "1842"]
[Annotator "NA RC"]
[PlyCount "63"]
[EventDate "2023.10.04"]
[EventType "swiss"]
[EventCountry "GER"]
[SourceTitle "playchess.com"]
[Source "ChessBase"]
[SourceQuality "1"]
[TimeControl "40/5400+30:1800+30"]

1. d4 {[%emt 0:00:03]} d5 {[%emt 0:00:46]} 2. Bf4 {[%emt 0:00:08]} e6 {[%emt 0:01:17]} 3. e3 {[%emt 0:00:07]} f5 {[%emt 0:00:55]} 4. Nf3 {[%emt 0:02:29]} Nf6 {[%emt 0:00:40]} 5. h3 {[%emt 0:00:24]} Bd6 {[%emt 0:00:37]} 6. Ne5 {[%emt 0:04:42]} O-O {[%emt 0:01:04]} 7. g4 {[%emt 0:00:58]} Ne4 {[%emt 0:03:57]} 8. gxf5 {[%emt 0:08:31]} Qh4 {[%emt 0:04:41]} 9. Qe2 {[%emt 0:03:55]} Bxe5 {[%emt 0:01:11]} 10. dxe5 {[%emt 0:01:22]} Rxf5 {[%emt 0:03:35]} 11. Nd2 {[%emt 0:00:50]} Nxd2 {[%emt 0:03:32]} 12. Qxd2 {[%emt 0:00:54]} Nc6 {[%emt 0:01:06]} 13. O-O-O {[%emt 0:03:48]} Bd7 {[%emt 0:02:30]} 14. Bd3 {[%emt 0:01:19]} Rf7 {[%emt 0:01:22]} 15. Rdg1 {[%emt 0:02:32]} a5 {[%emt 0:00:51]} 16. Rg4 {[%emt 0:01:30]} Qe7 {[%emt 0:01:45]} 17. c3 {[%emt 0:03:20]} Kh8 {[%emt 0:14:49]} 18. Rhg1 {[%emt 0:01:32]} b5 {[%emt 0:06:55]} 19. Qc2 {[%emt 0:07:11]} b4 {[%emt 0:04:07]} 20. Bxh7 {[%emt 0:02:35]} bxc3 {[%emt 0:00:42]} 21. bxc3 {[%emt 0:10:35]} Qa3+ {[%emt 0:07:18]} 22. Kd2 {[%emt 0:00:27]} Qe7 {[%emt 0:07:33]} 23. Ke2 {[%emt 0:05:03]} Nd8 {[%emt 0:05:03]} 24. Bg5 {[%emt 0:01:27]} Qf8 {[%emt 0:00:38]} 25. f4 {[%emt 0:01:52]} Bb5+ {[%emt 0:01:14]} 26. Kf2 {[%emt 0:02:03]} Ba4 {[%emt 0:07:27]} 27. Qb1 {[%emt 0:00:49]} c6 {[%emt 0:03:39]} 28. Rh4 {[%emt 0:11:02]} Rb7 {[%emt 0:01:10]} 29. Qg6 {[%emt 0:00:45]} Rb2+ {[%emt 0:04:52]} 30. Kf3 {[%emt 0:01:29]} Bb5 {[%emt 0:02:10]} 31. Re1 {[%emt 0:02:11]} Qf7 {[%emt 0:02:30]} 32. Bxd8 {[%emt 0:02:12]} 1-0

[Event "26th OIBM 2023"]
[Site "Gmund am Tegernsee"]
[Date "2023.10.30"]
[Round "3.29"]
[White "Bilandzic, Ante"]
[Black "Wenner, Tobias"]
[Result "1-0"]
[ECO "A48"]
[WhiteElo "1840"]
[BlackElo "2064"]
[Annotator "NA RC"]
[PlyCount "81"]
[EventDate "2023.10.04"]
[EventType "swiss"]
[EventCountry "GER"]
[SourceTitle "playchess.com"]
[Source "ChessBase"]
[SourceQuality "1"]
[TimeControl "40/5400+30:1800+30"]

1. d4 {[%emt 0:00:24]} Nf6 {[%emt 0:00:25]} 2. Nf3 {[%emt 0:00:06]} g6 {[%emt 0:00:13]} 3. Bf4 {[%emt 0:00:07]} Bg7 {[%emt 0:00:15]} 4. e3 {[%emt 0:00:04]} O-O {[%emt 0:01:30]} 5. Nbd2 {[%emt 0:00:08]} d6 {[%emt 0:01:07]} 6. Be2 {[%emt 0:00:06]} c5 {[%emt 0:00:30]} 7. c3 {[%emt 0:02:52]} b6 {[%emt 0:03:03]} 8. O-O {[%emt 0:00:22]} Bb7 {[%emt 0:00:19]} 9. Re1 {[%emt 0:01:07]} Nh5 {[%emt 0:01:07]} 10. Bg5 {[%emt 0:00:16]} h6 {[%emt 0:00:44]} 11. Bh4 {[%emt 0:00:04]} g5 {[%emt 0:00:30]} 12. Bg3 {[%emt 0:00:33]} Nxg3 {[%emt 0:00:12]} 13. hxg3 {[%emt 0:00:01]} Nd7 {[%emt 0:03:10]} 14. a4 {[%emt 0:02:46]} a6 {[%emt 0:00:51]} 15. Qb3 {[%emt 0:07:14]} d5 {[%emt 0:14:14]} 16. Bf1 {[%emt 0:04:14]} e6 {[%emt 0:09:58]} 17. Rad1 {[%emt 0:07:37]} g4 {[%emt 0:10:17]} 18. Nh4 {[%emt 0:05:25]} Bf6 {[%emt 0:02:26]} 19. dxc5 {[%emt 0:03:35]} Nxc5 {[%emt 0:00:16]} 20. Qb4 {[%emt 0:00:11]} h5 {[%emt 0:07:40]} 21. a5 {[%emt 0:00:28]} Bxh4 {[%emt 0:01:45]} 22. gxh4 {[%emt 0:01:00]} Qxh4 {[%emt 0:03:25]} 23. g3 {[%emt 0:06:52]} Qe7 {[%emt 0:01:01]} 24. Nb3 {[%emt 0:01:13]} Rfe8 {[%emt 0:02:52]} 25. axb6 {[%emt 0:05:13]} Nxb3 {[%emt 0:00:20]} 26. Qxb3 {[%emt 0:00:11]} Qc5 {[%emt 0:02:51]} 27. e4 {[%emt 0:03:04]} Red8 {[%emt 0:07:38]} 28. exd5 {[%emt 0:06:40]} Rxd5 {[%emt 0:01:39]} 29. Rxd5 {[%emt 0:10:48]} Bxd5 {[%emt 0:00:09]} 30. Re5 {[%emt 0:00:24]} Qd6 {[%emt 0:05:39]} 31. Rg5+ {[%emt 0:00:11]} Kf8 {[%emt 0:00:11]} 32. c4 {[%emt 0:00:14]} Bb7 {[%emt 0:02:45]} 33. Bg2 {[%emt 0:13:41]} Bxg2 {[%emt 0:03:27]} 34. Kxg2 {[%emt 0:00:18]} Qc6+ {[%emt 0:00:33]} 35. Kh2 {[%emt 0:01:14]} f6 {[%emt 0:01:42]} 36. Rxh5 {[%emt 0:01:12]} Kg7 {[%emt 0:00:50]} 37. Qe3 {[%emt 0:04:02]} e5 {[%emt 0:05:42]} 38. c5 {[%emt 0:08:59]} Rh8 {[%emt 0:02:27]} 39. Rxh8 {[%emt 0:00:35]} Kxh8 {[%emt 0:00:02]} 40. b4 {[%emt 0:01:07]} Kg7 {[%emt 0:00:51]} 41. Qe2 {[%emt 0:32:00]} 1-0

[Event "26th OIBM 2023"]
[Site "Gmund am Tegernsee"]
[Date "2023.10.30"]
[Round "3.30"]
[White "Schleich, Theodor"]
[Black "Pollmann, Sascha"]
[Result "0-1"]
[ECO "A80"]
[WhiteElo "1830"]
[BlackElo "2061"]
[Annotator "NA RC"]
[PlyCount "88"]
[EventDate "2023.10.04"]
[EventType "swiss"]
[EventCountry "GER"]
[SourceTitle "playchess.com"]
[Source "ChessBase"]
[SourceQuality "1"]
[TimeControl "40/5400+30:1800+30"]

1. d4 {[%emt 0:00:02]} f5 {[%emt 0:00:10]} 2. Bg5 {[%emt 0:00:05]} g6 {[%emt 0:00:13]} 3. Nc3 {[%emt 0:00:13]} Bg7 {[%emt 0:00:15]} 4. e3 {[%emt 0:00:23]} d5 {[%emt 0:01:17]} 5. h4 {[%emt 0:00:19]} c6 {[%emt 0:02:08]} 6. h5 {[%emt 0:09:05]} h6 {[%emt 0:00:35]} 7. Bf4 {[%emt 0:01:18]} g5 {[%emt 0:00:27]} 8. Bg3 {[%emt 0:00:03]} Nf6 {[%emt 0:01:55]} 9. Nf3 {[%emt 0:00:56]} Nbd7 {[%emt 0:02:42]} 10. Ne5 {[%emt 0:02:45]} Nxe5 {[%emt 0:07:48]} 11. Bxe5 {[%emt 0:03:52]} O-O {[%emt 0:00:46]} 12. Bd3 {[%emt 0:11:27]} Ne4 {[%emt 0:08:10]} 13. Bxg7 {[%emt 0:00:11]} Kxg7 {[%emt 0:00:22]} 14. Qe2 {[%emt 0:05:22]} Qd6 {[%emt 0:04:57]} 15. a3 {[%emt 0:05:00]} Nxc3 {[%emt 0:08:20]} 16. bxc3 {[%emt 0:00:02]} e5 {[%emt 0:00:32]} 17. Qd2 {[%emt 0:01:45]} e4 {[%emt 0:00:58]} 18. Be2 {[%emt 0:00:02]} Be6 {[%emt 0:00:35]} 19. O-O {[%emt 0:01:11]} Bf7 {[%emt 0:09:11]} 20. g4 {[%emt 0:02:41]} fxg4 {[%emt 0:02:08]} 21. Bxg4 {[%emt 0:00:02]} Be6 {[%emt 0:00:27]} 22. Qe2 {[%emt 0:01:47]} Bxg4 {[%emt 0:07:35]} 23. Qxg4 {[%emt 0:00:01]} Rf3 {[%emt 0:00:30]} 24. c4 {[%emt 0:00:11]} Raf8 {[%emt 0:01:45]} 25. Rab1 {[%emt 0:03:26]} b6 {[%emt 0:02:20]} 26. c5 {[%emt 0:01:01]} Qf6 {[%emt 0:01:39]} 27. cxb6 {[%emt 0:04:53]} axb6 {[%emt 0:01:12]} 28. Qg2 {[%emt 0:02:08]} b5 {[%emt 0:00:57]} 29. a4 {[%emt 0:02:17]} bxa4 {[%emt 0:01:58]} 30. Rb4 {[%emt 0:00:02]} Qf7 {[%emt 0:07:14]} 31. Rxa4 {[%emt 0:08:27]} Qxh5 {[%emt 0:01:17]} 32. c4 {[%emt 0:03:52]} Rxf2 {[%emt 0:07:01]} 33. Ra7+ {[%emt 0:00:36]} R2f7 {[%emt 0:00:16]} 34. Qf2 {[%emt 0:01:54]} Qg4+ {[%emt 0:01:48]} 35. Kh2 {[%emt 0:03:10]} Qh5+ {[%emt 0:01:33]} 36. Kg1 {[%emt 0:00:43]} Qf3 {[%emt 0:00:28]} 37. Qxf3 {[%emt 0:00:11]} exf3 {[%emt 0:00:07]} 38. Rxf7+ {[%emt 0:00:10]} Rxf7 {[%emt 0:00:12]} 39. cxd5 {[%emt 0:00:02]} cxd5 {[%emt 0:00:11]} 40. Kf2 {[%emt 0:04:31]} g4 {[%emt 0:02:38]} 41. Kg3 {[%emt 0:39:29]} h5 {[%emt 0:30:17]} 42. Kh4 {[%emt 0:01:23]} Kg6 {[%emt 0:00:21]} 43. Ra1 {[%emt 0:00:40]} f2 {[%emt 0:00:28]} 44. Rf1 {[%emt 0:00:02]} Rf3 {[%emt 0:00:39]} 0-1

[Event "26th OIBM 2023"]
[Site "Gmund am Tegernsee"]
[Date "2023.10.30"]
[Round "3.31"]
[White "Oyberman, Mikhail"]
[Black "Barthel, Ansgar"]
[Result "1/2-1/2"]
[ECO "B27"]
[WhiteElo "1819"]
[BlackElo "2056"]
[Annotator "NA RC"]
[PlyCount "106"]
[EventDate "2023.10.04"]
[EventType "swiss"]
[EventCountry "GER"]
[SourceTitle "playchess.com"]
[Source "ChessBase"]
[SourceQuality "1"]
[TimeControl "40/5400+30:1800+30"]

1. e4 {[%emt 0:00:03]} g6 {[%emt 0:00:09]} 2. d4 {[%emt 0:00:08]} Bg7 {[%emt 0:00:06]} 3. Nf3 {[%emt 0:00:06]} c5 {[%emt 0:01:30]} 4. c3 {[%emt 0:00:07]} Qa5 {[%emt 0:01:07]} 5. Nbd2 {[%emt 0:07:44]} cxd4 {[%emt 0:01:31]} 6. Nb3 {[%emt 0:01:31]} Qb6 {[%emt 0:06:14]} 7. cxd4 {[%emt 0:00:10]} d6 {[%emt 0:04:48]} 8. Bd3 {[%emt 0:04:43]} Bg4 {[%emt 0:01:14]} 9. Be3 {[%emt 0:03:51]} Nf6 {[%emt 0:10:26]} 10. O-O {[%emt 0:00:27]} O-O {[%emt 0:00:28]} 11. h3 {[%emt 0:00:24]} Bxf3 {[%emt 0:00:06]} 12. Qxf3 {[%emt 0:00:04]} Nc6 {[%emt 0:05:09]} 13. Rad1 {[%emt 0:06:17]} Nd7 {[%emt 0:18:45]} 14. Bb1 {[%emt 0:00:22]} a5 {[%emt 0:05:31]} 15. Qe2 {[%emt 0:03:05]} d5 {[%emt 0:07:05]} 16. exd5 {[%emt 0:01:21]} Nb4 {[%emt 0:00:07]} 17. Nc5 {[%emt 0:00:44]} Nf6 {[%emt 0:00:59]} 18. a3 {[%emt 0:01:33]} Nbxd5 {[%emt 0:00:10]} 19. Ba2 {[%emt 0:00:14]} Rfd8 {[%emt 0:02:29]} 20. Bg5 {[%emt 0:01:49]} h6 {[%emt 0:04:22]} 21. Bh4 {[%emt 0:02:17]} e6 {[%emt 0:03:26]} 22. Rfe1 {[%emt 0:02:04]} Nf4 {[%emt 0:05:59]} 23. Qf3 {[%emt 0:04:29]} g5 {[%emt 0:00:52]} 24. Bg3 {[%emt 0:00:07]} Qxb2 {[%emt 0:01:42]} 25. Bxf4 {[%emt 0:00:54]} Qxa2 {[%emt 0:03:20]} 26. Be5 {[%emt 0:00:33]} Qd5 {[%emt 0:00:15]} 27. Qxd5 {[%emt 0:01:53]} Rxd5 {[%emt 0:01:35]} 28. Nxb7 {[%emt 0:03:42]} Nd7 {[%emt 0:00:10]} 29. Bxg7 {[%emt 0:00:05]} Kxg7 {[%emt 0:00:05]} 30. Nc5 {[%emt 0:00:11]} Nxc5 {[%emt 0:00:24]} 31. dxc5 {[%emt 0:00:05]} Rxc5 {[%emt 0:00:13]} 32. Re3 {[%emt 0:00:11]} Rac8 {[%emt 0:00:37]} 33. Rd7 {[%emt 0:00:59]} Rc1+ {[%emt 0:01:40]} 34. Kh2 {[%emt 0:00:05]} R8c7 {[%emt 0:03:24]} 35. Rxc7 {[%emt 0:00:32]} Rxc7 {[%emt 0:00:05]} 36. Re5 {[%emt 0:00:03]} a4 {[%emt 0:03:28]} 37. Re4 {[%emt 0:00:08]} Ra7 {[%emt 0:01:13]} 38. g3 {[%emt 0:00:08]} Ra5 {[%emt 0:01:41]} 39. Kg2 {[%emt 0:00:06]} Kf6 {[%emt 0:00:41]} 40. Kf3 {[%emt 0:00:23]} h5 {[%emt 0:00:37]} 41. Rb4 {[%emt 0:30:07]} Kg6 {[%emt 0:31:33]} 42. Re4 {[%emt 0:00:25]} Ra6 {[%emt 0:03:35]} 43. Ke3 {[%emt 0:00:54]} f5 {[%emt 0:00:40]} 44. Rb4 {[%emt 0:00:04]} Kf6 {[%emt 0:00:27]} 45. Kf3 {[%emt 0:01:48]} Ra5 {[%emt 0:00:00]} 46. Rc4 {[%emt 0:00:00]} g4+ {[%emt 0:00:00]} 47. hxg4 {[%emt 0:00:00]} hxg4+ {[%emt 0:00:00]} 48. Ke3 {[%emt 0:00:00]} Ke5 {[%emt 0:00:00]} 49. Rb4 {[%emt 0:00:00]} Kd5 {[%emt 0:00:00]} 50. Kf4 {[%emt 0:00:00]} Ra6 {[%emt 0:00:00]} 51. Ke3 {[%emt 0:00:00]} Ra5 {[%emt 0:00:00]} 52. Kf4 {[%emt 0:00:00]} Ra6 {[%emt 0:00:00]} 53. Ke3 {[%emt 0:00:00]} Ke5 {[%emt 0:07:02]} 1/2-1/2

[Event "26th OIBM 2023"]
[Site "Gmund am Tegernsee"]
[Date "2023.10.30"]
[Round "3.32"]
[White "Semprun Martinez, Fernando"]
[Black "Groessing, Daniel-Yosuke"]
[Result "1-0"]
[ECO "A29"]
[WhiteElo "2064"]
[BlackElo "1755"]
[Annotator "NA RC"]
[PlyCount "65"]
[EventDate "2023.10.04"]
[EventType "swiss"]
[EventCountry "GER"]
[SourceTitle "playchess.com"]
[Source "ChessBase"]
[SourceQuality "1"]
[TimeControl "40/5400+30:1800+30"]

1. c4 {[%emt 0:00:04]} e5 {[%emt 0:00:16]} 2. Nc3 {[%emt 0:00:02]} Nf6 {[%emt 0:00:09]} 3. Nf3 {[%emt 0:00:09]} Nc6 {[%emt 0:00:53]} 4. g3 {[%emt 0:00:12]} Bc5 {[%emt 0:00:58]} 5. Bg2 {[%emt 0:01:24]} O-O {[%emt 0:01:37]} 6. O-O {[%emt 0:00:12]} a6 {[%emt 0:01:53]} 7. a3 {[%emt 0:02:31]} d6 {[%emt 0:03:04]} 8. b4 {[%emt 0:01:28]} Bb6 {[%emt 0:02:44]} 9. d3 {[%emt 0:04:06]} h6 {[%emt 0:03:56]} 10. Bb2 {[%emt 0:15:33]} Be6 {[%emt 0:13:32]} 11. Rc1 {[%emt 0:01:57]} a5 {[%emt 0:08:55]} 12. b5 {[%emt 0:03:40]} Nb8 {[%emt 0:05:27]} 13. Na4 {[%emt 0:03:26]} Nbd7 {[%emt 0:03:36]} 14. d4 {[%emt 0:05:28]} e4 {[%emt 0:07:10]} 15. Nd2 {[%emt 0:04:43]} d5 {[%emt 0:01:49]} 16. cxd5 {[%emt 0:00:30]} Bxd5 {[%emt 0:00:30]} 17. Nxb6 {[%emt 0:04:23]} Nxb6 {[%emt 0:01:04]} 18. Qc2 {[%emt 0:01:31]} e3 {[%emt 0:05:18]} 19. fxe3 {[%emt 0:00:30]} Bxg2 {[%emt 0:00:30]} 20. Kxg2 {[%emt 0:00:19]} Qd5+ {[%emt 0:06:15]} 21. Rf3 {[%emt 0:18:07]} Qxb5 {[%emt 0:01:02]} 22. Nf1 {[%emt 0:01:26]} c6 {[%emt 0:02:04]} 23. e4 {[%emt 0:02:23]} Rae8 {[%emt 0:06:22]} 24. e5 {[%emt 0:02:57]} Nfd7 {[%emt 0:02:54]} 25. Rb1 {[%emt 0:06:55]} Qd5 {[%emt 0:06:15]} 26. e4 {[%emt 0:00:41]} Qe6 {[%emt 0:00:22]} 27. Bc3 {[%emt 0:08:05]} Ra8 {[%emt 0:08:06]} 28. Ne3 {[%emt 0:01:05]} g6 {[%emt 0:03:12]} 29. Qd2 {[%emt 0:03:37]} Ra6 {[%emt 0:03:24]} 30. d5 {[%emt 0:04:24]} cxd5 {[%emt 0:00:36]} 31. exd5 {[%emt 0:00:19]} Qe7 {[%emt 0:00:06]} 32. Ng4 {[%emt 0:01:02]} Qg5 {[%emt 0:00:24]} 33. Nxh6+ {[%emt 0:03:51]} 1-0